fUSD/lending_fUSD_20250610
["ID","MTS","AMOUNT","RATE_DAILY","PERIOD"]
[365241700,1749561047186,-490.0,0.0001726,2]
[365241702,1749561047195,-490.0,0.0001726,2]
[365241704,1749561047205,-490.0,0.0001726,2]
[365241706,1749561047217,-490.0,0.0001726,2]
[365241708,1749561047227,-257.72631432,0.0001726,2]
[365241711,1749561047237,-490.0,0.0001726,2]
[365241713,1749561047247,-490.0,0.0001726,2]
[365241715,1749561047256,-490.0,0.0001726,2]
[365241717,1749561047265,-490.0,0.0001726,2]
[365241718,1749561047274,-1036.14,0.0001726,2]
[365241721,1749561047284,-490.0,0.0001726,2]
[365241722,1749561047293,-440.0,0.0001726,2]
[365241725,1749561047304,-296.03,0.0001726,2]
[365241726,1749561047313,-1391.13,0.0001726,2]
[365241728,1749561047322,-490.0,0.0001726,2]
[365241730,1749561047332,-490.0,0.0001726,2]
[365241732,1749561047341,-490.0,0.0001726,2]
[365241735,1749561047351,-490.0,0.0001726,2]
[365241737,1749561047360,-490.0,0.0001726,2]
[365241738,1749561047370,-490.0,0.0001726,2]
[365241740,1749561047379,-490.0,0.0001726,2]
[365241743,1749561047389,-553.45211815,0.0001726,2]
[365241744,1749561047398,-490.0,0.0001726,2]
[365241746,1749561047408,-490.0,0.0001726,2]
[365241748,1749561047417,-490.0,0.0001726,2]
[365241750,1749561047426,-485.59935811,0.0001726,2]
[365241752,1749561047436,-671.85,0.0001726,2]
[365241755,1749561047445,-669.41,0.0001726,2]
[365241757,1749561047454,-605.06,0.0001726,2]
[365241759,1749561047464,-490.0,0.0001726,2]
[365241760,1749561047474,-490.0,0.0001726,2]
[365241762,1749561047483,-490.0,0.0001726,2]
[365241764,1749561047493,-490.0,0.0001726,2]
[365241766,1749561047502,-375.0,0.00017283,3]
[365241769,1749561047513,-1000.0,0.00017321,2]
[365241771,1749561047522,-1000.0,0.00017321,2]
[365241772,1749561047532,-973.48262456,0.00017385,2]
[365241774,1749561047541,-2086.99570971,0.00017385,2]
[365241776,1749561047551,-490.0,0.00017424,2]
[365241778,1749561047560,-781.23,0.00017424,2]
[365241780,1749561047569,-490.0,0.00017424,2]
[365241782,1749561047579,-490.0,0.00017424,2]
[365241784,1749561047588,-8784.32,0.00017424,2]
[365241786,1749561047598,-490.0,0.00017424,2]
[365241788,1749561047607,-600.11,0.00017424,2]
[365241790,1749561047616,-490.0,0.00017424,2]
[365241792,1749561047626,-490.0,0.00017424,2]
[365241794,1749561047635,-490.0,0.00017424,2]
[365241796,1749561047644,-490.0,0.00017424,2]
[365241798,1749561047654,-1379.66,0.00017424,2]
[365241800,1749561047664,-490.0,0.00017424,2]
[365241803,1749561047674,-490.0,0.00017424,2]
[365241805,1749561047684,-490.0,0.00017424,2]
[365241806,1749561047693,-490.0,0.00017424,2]
[365241808,1749561047702,-490.0,0.00017424,2]
[365241811,1749561047712,-1207.96,0.00017424,2]
[365241813,1749561047722,-490.0,0.00017424,2]
[365241815,1749561047731,-490.0,0.00017424,2]
[365241816,1749561047741,-666.07,0.00017424,2]
[365241819,1749561047751,-722.06,0.00017424,2]
[365241821,1749561047761,-490.0,0.00017424,2]
[365241822,1749561047770,-490.0,0.00017424,2]
[365241824,1749561047780,-490.0,0.00017424,2]
[365241826,1749561047789,-490.0,0.00017424,2]
[365241828,1749561047799,-490.0,0.00017424,2]
[365241830,1749561047810,-490.0,0.00017424,2]
[365241832,1749561047820,-490.0,0.00017424,2]
[365241835,1749561047829,-490.0,0.00017424,2]
[365241837,1749561047839,-1036.14,0.00017424,2]
[365241839,1749561047849,-490.0,0.00017424,2]
[365241841,1749561047859,-1391.13,0.00017424,2]
[365241843,1749561047868,-490.0,0.00017424,2]
[365241845,1749561047877,-490.0,0.00017424,2]
[365241846,1749561047886,-490.0,0.00017424,2]
[365241848,1749561047896,-490.0,0.00017424,2]
[365241850,1749561047905,-490.0,0.00017424,2]
[365241852,1749561047915,-490.0,0.00017424,2]
[365241854,1749561047924,-490.0,0.00017424,2]
[365241856,1749561047934,-490.0,0.00017424,2]
[365241858,1749561047943,-490.0,0.00017424,2]
[365241860,1749561047953,-490.0,0.00017424,2]
[365241862,1749561047962,-671.85,0.00017424,2]
[365241864,1749561047972,-605.06,0.00017424,2]
[365241866,1749561047981,-669.41,0.00017424,2]
[365241868,1749561047990,-490.0,0.00017424,2]
[365241870,1749561048000,-264.17,0.00017424,2]
[365241872,1749561048009,-490.0,0.00017424,2]
[365241874,1749561048018,-490.0,0.00017424,2]
[365241876,1749561048028,-151.0,0.00017457,2]
[365241878,1749561048037,-1000.0,0.00017457,2]
[365241880,1749561048047,-1957.856,0.00017457,2]
[365241882,1749561048058,-500.0,0.00017457,2]
[365241884,1749561048067,-500.0,0.00017457,2]
[365241886,1749561048077,-151.0,0.00017457,2]
[365241888,1749561048086,-500.0,0.00017457,2]
[365241890,1749561048095,-151.0,0.00017457,2]
[365241891,1749561048105,-668.65185757,0.00017457,2]
[365241894,1749561048116,-500.0,0.00017457,2]
[365241896,1749561048126,-500.0,0.00017457,2]
[365241897,1749561048140,-151.0,0.00017457,2]
[365241899,1749561048150,-500.0,0.00017457,2]
[365241902,1749561048160,-500.0,0.00017457,2]
[365241904,1749561048170,-151.0,0.00017457,2]
[365241906,1749561048180,-500.0,0.00017457,2]
[365241907,1749561048189,-500.0,0.00017457,2]
[365241909,1749561048199,-151.0,0.00017457,2]
[365241912,1749561048210,-500.0,0.00017457,2]
[365241914,1749561048220,-151.0,0.00017457,2]
[365241916,1749561048229,-500.0,0.00017457,2]
[365241917,1749561048238,-500.0,0.00017457,2]
[365241919,1749561048248,-286.31503645,0.00017457,2]
[365241922,1749561048258,-500.0,0.00017457,2]
[365241923,1749561048267,-151.0,0.00017457,2]
[365241926,1749561048277,-500.0,0.00017457,2]
[365241927,1749561048286,-151.0,0.00017457,2]
[365241929,1749561048296,-500.0,0.00017457,2]
[365241931,1749561048306,-500.0,0.00017457,2]
[365241934,1749561048316,-500.0,0.00017457,2]
[365241936,1749561048326,-500.0,0.00017457,2]
[365241937,1749561048335,-500.0,0.00017457,2]
[365241938,1749561048345,-500.0,0.00017457,2]
[365241939,1749561048354,-500.0,0.00017457,2]
[365241940,1749561048364,-500.0,0.00017457,2]
[365241941,1749561048373,-500.0,0.00017457,2]
[365241942,1749561048382,-500.0,0.00017457,2]
[365241943,1749561048392,-500.0,0.00017457,2]
[365241944,1749561048402,-500.0,0.00017457,2]
[365241945,1749561048411,-500.0,0.00017457,2]
[365241946,1749561048421,-500.0,0.00017457,2]
[365241947,1749561048433,-500.0,0.00017457,2]
[365241948,1749561048444,-500.0,0.00017457,2]
[365241949,1749561048455,-500.0,0.00017457,2]
[365241950,1749561048466,-500.0,0.00017457,2]
[365241951,1749561048476,-500.0,0.00017457,2]
[365241952,1749561048486,-500.0,0.00017457,2]
[365241953,1749561048497,-500.0,0.00017457,2]
[365241954,1749561048507,-500.0,0.00017457,2]
[365241955,1749561048517,-500.0,0.00017457,2]
[365241956,1749561048527,-500.0,0.00017457,2]
[365241957,1749561048536,-500.0,0.00017457,2]
[365241958,1749561048545,-500.0,0.00017457,2]
[365241959,1749561048555,-500.0,0.00017457,2]
[365241960,1749561048565,-500.0,0.00017457,2]
[365241961,1749561048576,-500.0,0.00017457,2]
[365241962,1749561048586,-310.41814798,0.00017457,2]
[365241963,1749561048596,-500.0,0.00017457,2]
[365241964,1749561048605,-500.0,0.00017457,2]
[365241965,1749561048616,-500.0,0.00017457,2]
[365241966,1749561048625,-500.0,0.00017457,2]
[365241967,1749561048635,-207.4,0.00017457,2]
[365241968,1749561048646,-211.23,0.00017477,2]
[365241969,1749561048656,-833.29909032,0.00017499,2]
[365241970,1749561048666,-2030.296672,0.00017512,2]
[365241971,1749561048676,-599.0,0.00017517,2]
[365241972,1749561048686,-3184.8723555,0.00017525,2]
[365241973,1749561048696,-2105.41764886,0.00017567,2]
[365241974,1749561048706,-169.17,0.00017586,2]
[365241975,1749561048716,-490.0,0.00017589,2]
[365241976,1749561048726,-781.23,0.00017589,2]
[365241977,1749561048736,-490.0,0.00017589,2]
[365241978,1749561048745,-490.0,0.00017589,2]
[365241979,1749561048756,-8784.32,0.00017589,2]
[365241980,1749561048766,-611.51856929,0.00017589,2]
[365241981,1749561048776,-600.11,0.00017589,2]
[365241982,1749561048785,-490.0,0.00017589,2]
[365241983,1749561048795,-435.94680675,0.00017589,2]
[365241984,1749561048806,-223.96,0.00017589,2]
[365241985,1749561048816,-490.0,0.00017589,2]
[365241986,1749561048826,-1379.66,0.00017589,2]
[365241987,1749561048836,-435.13446761,0.00017589,2]
[365241988,1749561048847,-490.0,0.00017589,2]
[365241989,1749561048857,-473.58,0.00017589,2]
[365241990,1749561048867,-490.0,0.00017589,2]
[365241991,1749561048878,-490.0,0.00017589,2]
[365241992,1749561048888,-1207.96,0.00017589,2]
[365241993,1749561048899,-490.0,0.00017589,2]
[365241994,1749561048909,-490.0,0.00017589,2]
[365241995,1749561048920,-666.07,0.00017589,2]
[365241996,1749561048930,-722.06,0.00017589,2]
[365241997,1749561048940,-490.0,0.00017589,2]
[365241998,1749561048951,-490.0,0.00017589,2]
[365241999,1749561048963,-490.0,0.00017589,2]
[365242000,1749561048977,-490.0,0.00017589,2]
[365242001,1749561048987,-490.0,0.00017589,2]
[365242002,1749561048998,-490.0,0.00017589,2]
[365242003,1749561049008,-490.0,0.00017589,2]
[365242004,1749561049018,-490.0,0.00017589,2]
[365242005,1749561049028,-1036.14,0.00017589,2]
[365242006,1749561049038,-490.0,0.00017589,2]
[365242007,1749561049048,-1391.13,0.00017589,2]
[365242008,1749561049059,-490.0,0.00017589,2]
[365242009,1749561049069,-490.0,0.00017589,2]
[365242010,1749561049079,-490.0,0.00017589,2]
[365242011,1749561049089,-490.0,0.00017589,2]
[365242012,1749561049099,-490.0,0.00017589,2]
[365242013,1749561049110,-490.0,0.00017589,2]
[365242014,1749561049120,-490.0,0.00017589,2]
[365242015,1749561049134,-599.65,0.00017589,2]
[365242016,1749561049144,-491.64,0.00017589,2]
[365242017,1749561049154,-490.0,0.00017589,2]
[365242019,1749561049165,-671.85,0.00017589,2]
[365242021,1749561049174,-605.06,0.00017589,2]
[365242022,1749561049184,-669.41,0.00017589,2]
[365242025,1749561049195,-490.0,0.00017589,2]
[365242026,1749561049205,-370.55160715,0.00017589,2]
[365242028,1749561049216,-245.64,0.00017589,2]
[365242031,1749561049227,-2183.31810187,0.00017622,2]
[365242033,1749561049237,-250.0,0.00017648,2]
[365242034,1749561049247,-250.0,0.00017648,2]
[365242036,1749561049257,-2264.10087164,0.00017677,2]
[365242038,1749561049267,-1000.0,0.00017709,2]
[365242040,1749561049278,-375.0,0.00017723,3]
[365242043,1749561049288,-2347.87260389,0.00017732,2]
[365242045,1749561049299,-973.48262456,0.00017744,2]
[365242047,1749561049310,-2086.99570971,0.00017745,2]
[365242049,1749561049320,-490.0,0.00017753,2]
[365242051,1749561049330,-781.23,0.00017753,2]
[365242053,1749561049340,-160.0,0.00017753,2]
[365242055,1749561049349,-370.0,0.00017753,2]
[365242057,1749561049359,-8784.32,0.00017753,2]
[365242059,1749561049370,-600.11,0.00017753,2]
[365242061,1749561049379,-490.0,0.00017753,2]
[365242063,1749561049389,-177.61,0.00017753,2]
[365242065,1749561049399,-1379.66,0.00017753,2]
[365242067,1749561049409,-490.0,0.00017753,2]
[365242069,1749561049419,-490.0,0.00017753,2]
[365242071,1749561049431,-490.0,0.00017753,2]
[365242073,1749561049441,-1207.96,0.00017753,2]
[365242075,1749561049451,-490.0,0.00017753,2]
[365242077,1749561049461,-490.0,0.00017753,2]
[365242079,1749561049472,-666.07,0.00017753,2]
[365242081,1749561049482,-722.06,0.00017753,2]
[365242083,1749561049492,-490.0,0.00017753,2]
[365242085,1749561049502,-440.0,0.00017753,2]
[365242087,1749561049512,-490.0,0.00017753,2]
[365242089,1749561049523,-490.0,0.00017753,2]
[365242091,1749561049533,-490.0,0.00017753,2]
[365242093,1749561049542,-490.0,0.00017753,2]
[365242095,1749561049552,-410.0,0.00017753,2]
[365242098,1749561049563,-490.0,0.00017753,2]
[365242099,1749561049573,-1036.14,0.00017753,2]
[365242101,1749561049583,-490.0,0.00017753,2]
[365242104,1749561049593,-1391.13,0.00017753,2]
[365242106,1749561049603,-490.0,0.00017753,2]
[365242108,1749561049613,-490.0,0.00017753,2]
[365242110,1749561049623,-490.0,0.00017753,2]
[365242112,1749561049633,-490.0,0.00017753,2]
[365242113,1749561049642,-490.0,0.00017753,2]
[365242116,1749561049654,-490.0,0.00017753,2]
[365242118,1749561049664,-490.0,0.00017753,2]
[365242120,1749561049673,-490.0,0.00017753,2]
[365242122,1749561049682,-671.85,0.00017753,2]
[365242124,1749561049692,-605.06,0.00017753,2]
[365242126,1749561049702,-669.41,0.00017753,2]
[365242127,1749561049712,-490.0,0.00017753,2]
[365242130,1749561049721,-2434.74389024,0.00017787,2]
[365242131,1749561049731,-8557.0,0.000178,2]
[365242134,1749561049741,-5397.15,0.000178,2]
[365242135,1749561049751,-500.0,0.00017808,2]
[365242138,1749561049760,-500.0,0.00017808,2]
[365242140,1749561049771,-500.0,0.00017808,2]
[365242142,1749561049780,-500.0,0.00017808,2]
[365242144,1749561049790,-500.0,0.00017808,2]
[365242146,1749561049799,-500.0,0.00017808,2]
[365242148,1749561049809,-500.0,0.00017808,2]
[365242150,1749561049819,-500.0,0.00017808,2]
[365242152,1749561049828,-237.16915795,0.00017808,2]
[365242154,1749561049839,-500.0,0.00017808,2]
[365242156,1749561049849,-500.0,0.00017808,2]
[365242158,1749561049860,-2524.82941417,0.00017842,2]
[365242160,1749561049870,-500.0,0.00017868,2]
[365242162,1749561049880,-1003.44884869,0.00017868,2]
[365242164,1749561049889,-420.0,0.00017874,2]
[365242166,1749561049899,-2618.2481025,0.00017897,2]
[365242168,1749561049909,-8557.0,0.000179,2]
[365242170,1749561049919,-8557.0,0.000179,2]
[365242172,1749561049929,-158.80230006,0.000179,2]
[365242174,1749561049939,-158.80230005,0.000179,2]
[365242176,1749561049949,-158.80230005,0.000179,2]
[365242178,1749561049959,-158.80230005,0.000179,2]
[365242180,1749561049969,-1592.78811303,0.000179,2]
[365242182,1749561049979,-5397.15,0.000179,2]
[365242184,1749561049989,-5397.15,0.000179,2]
[365242186,1749561049999,-900.0,0.000179,6]
[365242188,1749561050009,-490.0,0.00017917,2]
[365242190,1749561050019,-781.23,0.00017917,2]
[365242192,1749561050029,-8784.32,0.00017917,2]
[365242194,1749561050039,-600.11,0.00017917,2]
[365242196,1749561050048,-490.0,0.00017917,2]
[365242198,1749561050058,-1379.66,0.00017917,2]
[365242200,1749561050068,-490.0,0.00017917,2]
[365242202,1749561050078,-490.0,0.00017917,2]
[365242205,1749561050089,-490.0,0.00017917,2]
[365242207,1749561050099,-1207.96,0.00017917,2]
[365242209,1749561050109,-490.0,0.00017917,2]
[365242211,1749561050120,-490.0,0.00017917,2]
[365242213,1749561050131,-666.07,0.00017917,2]
[365242215,1749561050145,-722.06,0.00017917,2]
[365242217,1749561050156,-490.0,0.00017917,2]
[365242219,1749561050165,-172.28082063,0.00017917,2]
[365242221,1749561050177,-490.0,0.00017917,2]
[365242223,1749561050187,-490.0,0.00017917,2]
[365242225,1749561050197,-277.22,0.00017917,2]
[365242227,1749561050207,-490.0,0.00017917,2]
[365242229,1749561050217,-1036.14,0.00017917,2]
[365242231,1749561050227,-171.11949663,0.00017917,2]
[365242233,1749561050237,-1391.13,0.00017917,2]
[365242235,1749561050248,-490.0,0.00017917,2]
[365242237,1749561050258,-490.0,0.00017917,2]
[365242239,1749561050269,-490.0,0.00017917,2]
[365242241,1749561050281,-490.0,0.00017917,2]
[365242244,1749561050293,-410.9,0.00017917,2]
[365242246,1749561050302,-335.27,0.00017917,2]
[365242248,1749561050314,-474.13,0.00017917,2]
[365242250,1749561050324,-490.0,0.00017917,2]
[365242252,1749561050334,-671.85,0.00017917,2]
[365242254,1749561050344,-605.06,0.00017917,2]
[365242256,1749561050354,-669.41,0.00017917,2]
[365242258,1749561050364,-490.0,0.00017917,2]
[365242260,1749561050373,-3184.8723555,0.00017921,2]
[365242262,1749561050383,-851.95286966,0.00017933,2]
[365242264,1749561050393,-2715.12328229,0.00017952,2]
[365242266,1749561050403,-860.55,0.00017954,2]
[365242268,1749561050413,-420.0,0.00017962,2]
[365242270,1749561050423,-1592.78811282,0.00017969,2]
[365242272,1749561050433,-2745.76392373,0.00018,2]
[365242274,1749561050444,-804.87961208,0.00018,2]
[365242276,1749561050453,-155.31328115,0.00018005,2]
[365242278,1749561050464,-2815.58284374,0.00018007,2]
[365242280,1749561050475,-1592.78811282,0.00018038,2]
[365242282,1749561050485,-163.04973825,0.00018038,2]
[365242284,1749561050495,-500.0,0.00018038,2]
[365242286,1749561050505,-267.63301061,0.00018038,2]
[365242288,1749561050514,-500.0,0.00018038,2]
[365242290,1749561050524,-500.0,0.00018038,2]
[365242292,1749561050534,-500.0,0.00018038,2]
[365242295,1749561050545,-500.0,0.00018038,2]
[365242297,1749561050556,-317.54218838,0.00018038,2]
[365242299,1749561050566,-500.0,0.00018038,2]
[365242301,1749561050576,-500.0,0.00018038,2]
[365242303,1749561050586,-500.0,0.00018038,2]
[365242305,1749561050596,-500.0,0.00018038,2]
[365242307,1749561050606,-1680.0,0.00018052,2]
[365242309,1749561050616,-2919.75940895,0.00018062,2]
[365242311,1749561050626,-300.0,0.0001808,2]
[365242313,1749561050636,-600.0,0.00018081,4]
[365242315,1749561050647,-250.0,0.00018081,2]
[365242317,1749561050657,-300.0,0.00018081,2]
[365242319,1749561050667,-490.0,0.00018082,2]
[365242321,1749561050676,-781.23,0.00018082,2]
[365242323,1749561050686,-8784.32,0.00018082,2]
[365242325,1749561050696,-600.11,0.00018082,2]
[365242327,1749561050706,-490.0,0.00018082,2]
[365242329,1749561050715,-1379.66,0.00018082,2]
[365242331,1749561050725,-490.0,0.00018082,2]
[365242333,1749561050735,-209.14,0.00018082,2]
[365242335,1749561050745,-490.0,0.00018082,2]
[365242337,1749561050755,-1207.96,0.00018082,2]
[365242339,1749561050765,-490.0,0.00018082,2]
[365242341,1749561050775,-666.07,0.00018082,2]
[365242343,1749561050784,-490.0,0.00018082,2]
[365242345,1749561050795,-722.06,0.00018082,2]
[365242348,1749561050805,-490.0,0.00018082,2]
[365242350,1749561050815,-583.25,0.00018082,2]
[365242352,1749561050824,-490.0,0.00018082,2]
[365242354,1749561050834,-490.0,0.00018082,2]
[365242356,1749561050843,-1036.14,0.00018082,2]
[365242358,1749561050852,-1391.13,0.00018082,2]
[365242360,1749561050863,-245.58,0.00018082,2]
[365242362,1749561050872,-490.0,0.00018082,2]
[365242364,1749561050883,-490.0,0.00018082,2]
[365242366,1749561050892,-490.0,0.00018082,2]
[365242368,1749561050902,-490.0,0.00018082,2]
[365242370,1749561050912,-671.85,0.00018082,2]
[365242372,1749561050922,-605.06,0.00018082,2]
[365242374,1749561050932,-669.41,0.00018082,2]
[365242376,1749561050942,-490.0,0.00018082,2]
[365242378,1749561050952,-8557.0,0.000181,2]
[365242380,1749561050961,-5397.15,0.000181,2]
[365242382,1749561050971,-973.48262456,0.00018103,2]
[365242384,1749561050981,-2086.99570971,0.00018104,2]
[365242387,1749561050991,-1592.78811282,0.00018107,2]
[365242389,1749561051000,-3027.79050709,0.00018117,2]
[365242391,1749561051010,-375.0,0.00018164,4]
[365242393,1749561051020,-3139.81875585,0.00018172,2]
[365242395,1749561051031,-1592.78811282,0.00018176,2]
[365242397,1749561051040,-1477.2,0.00018182,2]
[365242399,1749561051050,-3255.99204981,0.00018227,2]
[365242401,1749561051060,-1592.78811282,0.00018245,2]
[365242403,1749561051070,-300.0,0.00018245,2]
[365242405,1749561051080,-490.0,0.00018246,2]
[365242407,1749561051090,-781.23,0.00018246,2]
[365242409,1749561051100,-8784.32,0.00018246,2]
[365242411,1749561051109,-600.11,0.00018246,2]
[365242413,1749561051120,-490.0,0.00018246,2]
[365242415,1749561051131,-1379.66,0.00018246,2]
[365242417,1749561051144,-490.0,0.00018246,2]
[365242440,1749561051357,-490.0,0.00018246,2]
[365242441,1749561051369,-1207.96,0.00018246,2]
[365242442,1749561051379,-490.0,0.00018246,2]
[365242443,1749561051389,-666.07,0.00018246,2]
[365242444,1749561051400,-490.0,0.00018246,2]
[365242445,1749561051410,-722.06,0.00018246,2]
[365242446,1749561051421,-370.0,0.00018246,2]
[365242447,1749561051430,-490.0,0.00018246,2]
[365242448,1749561051440,-490.0,0.00018246,2]
[365242449,1749561051450,-1036.14,0.00018246,2]
[365242450,1749561051461,-1391.13,0.00018246,2]
[365242452,1749561051471,-490.0,0.00018246,2]
[365242454,1749561051481,-490.0,0.00018246,2]
[365242456,1749561051491,-490.0,0.00018246,2]
[365242458,1749561051500,-490.0,0.00018246,2]
[365242460,1749561051510,-671.85,0.00018246,2]
[365242462,1749561051520,-605.06,0.00018246,2]
[365242464,1749561051530,-669.41,0.00018246,2]
[365242466,1749561051540,-490.0,0.00018246,2]
[365242468,1749561051550,-3376.46375566,0.00018282,2]
[365242469,1749561051560,-851.95286966,0.00018286,2]
[365242472,1749561051570,-298.77669866,0.0001831,2]
[365242474,1749561051580,-1592.78811282,0.00018314,2]
[365242476,1749561051590,-3184.8723555,0.00018316,2]
[365242478,1749561051600,-3501.39291462,0.00018337,2]
[365242480,1749561051609,-158.80230005,0.00018373,2]
[365242482,1749561051619,-945.0,0.00018376,2]
[365242483,1749561051629,-3330.0,0.00018376,2]
[365242485,1749561051638,-1592.78811282,0.00018383,2]
[365242487,1749561051648,-802.0,0.00018384,2]
[365242489,1749561051658,-637.0,0.00018384,2]
[365242491,1749561051668,-927.0,0.00018384,2]
[365242493,1749561051678,-2001.0,0.00018384,2]
[365242495,1749561051688,-590.0,0.00018384,2]
[365242497,1749561051698,-558.0,0.00018384,2]
[365242499,1749561051707,-1275.0,0.00018384,2]
[365242501,1749561051717,-1256.0,0.00018384,2]
[365242503,1749561051727,-1159.0,0.00018384,2]
[365242506,1749561051737,-3630.94445246,0.00018392,2]
[365242508,1749561051747,-238.66530525,0.00018392,2]
[365242510,1749561051756,-300.0,0.00018409,2]
[365242512,1749561051766,-490.0,0.0001841,2]
[365242514,1749561051776,-781.23,0.0001841,2]
[365242516,1749561051786,-8784.32,0.0001841,2]
[365242518,1749561051796,-600.11,0.0001841,2]
[365242520,1749561051806,-490.0,0.0001841,2]
[365242522,1749561051815,-1379.66,0.0001841,2]
[365242524,1749561051825,-440.0,0.0001841,2]
[365242526,1749561051835,-490.0,0.0001841,2]
[365242528,1749561051845,-1207.96,0.0001841,2]
[365242530,1749561051854,-490.0,0.0001841,2]
[365242532,1749561051864,-666.07,0.0001841,2]
[365242534,1749561051873,-308.32963424,0.0001841,2]
[365242536,1749561051882,-722.06,0.0001841,2]
[365242538,1749561051892,-490.0,0.0001841,2]
[365242540,1749561051901,-490.0,0.0001841,2]
[365242542,1749561051911,-1036.14,0.0001841,2]
[365242544,1749561051920,-1391.13,0.0001841,2]
[365242546,1749561051929,-490.0,0.0001841,2]
[365242548,1749561051939,-490.0,0.0001841,2]
[365242550,1749561051948,-490.0,0.0001841,2]
[365242552,1749561051957,-490.0,0.0001841,2]
[365242554,1749561051967,-671.85,0.0001841,2]
[365242556,1749561051976,-605.06,0.0001841,2]
[365242558,1749561051986,-669.41,0.0001841,2]
[365242560,1749561051995,-369.54,0.0001841,2]
[365242562,1749561052004,-4085.0,0.00018429,2]
[365242564,1749561052014,-883.0,0.00018429,2]
[365242566,1749561052023,-7064.0,0.00018429,2]
[365242568,1749561052032,-293.911,0.00018435,2]
[365242570,1749561052042,-853.0,0.00018435,2]
[365242572,1749561052051,-851.95286966,0.00018442,2]
[365242574,1749561052060,-3765.2893972,0.00018447,2]
[365242576,1749561052069,-1592.78811282,0.00018452,2]
[365242578,1749561052078,-973.48262456,0.00018463,2]
[365242580,1749561052087,-2086.99570971,0.00018463,2]
[365242582,1749561052096,-169.17,0.00018465,2]
[365242584,1749561052106,-150.0,0.00018485,2]
[365242586,1749561052115,-8557.0,0.000185,2]
[365242588,1749561052124,-5397.15,0.000185,2]
[365242590,1749561052135,-1592.78811282,0.00018521,2]
[365242592,1749561052145,-1000.0,0.00018551,2]
[365242594,1749561052154,-1092.95,0.00018574,2]
[365242596,1749561052163,-490.0,0.00018575,2]
[365242598,1749561052172,-781.23,0.00018575,2]
[365242600,1749561052182,-8784.32,0.00018575,2]
[365242602,1749561052191,-600.11,0.00018575,2]
[365242604,1749561052200,-490.0,0.00018575,2]
[365242606,1749561052211,-1379.66,0.00018575,2]
[365242608,1749561052220,-221.27,0.00018575,2]
[365242610,1749561052230,-1207.96,0.00018575,2]
[365242612,1749561052239,-424.89,0.00018575,2]
[365242614,1749561052247,-666.07,0.00018575,2]
[365242616,1749561052257,-722.06,0.00018575,2]
[365242618,1749561052266,-490.0,0.00018575,2]
[365242620,1749561052275,-490.0,0.00018575,2]
[365242622,1749561052286,-1036.14,0.00018575,2]
[365242624,1749561052295,-1391.13,0.00018575,2]
[365242626,1749561052304,-490.0,0.00018575,2]
[365242628,1749561052314,-177.4,0.00018575,2]
[365242630,1749561052323,-490.0,0.00018575,2]
[365242632,1749561052332,-490.0,0.00018575,2]
[365242634,1749561052342,-671.85,0.00018575,2]